bitfinex/quotes_SOLUSD_20220306
["timestamp","ask_amount","ask_price","bid_price","bid_amount"]
[1646587589117,24.853,87.146,87.09,17.2295]
[1646587597025,1.022,87.145,87.09,17.2295]
[1646587600330,24.853,87.146,87.09,17.2295]
[1646587600530,24.853,87.146,87.091,24.8321]
[1646587600729,24.853,87.146,87.1,17.2259]
[1646587602332,26.39403073,87.146,87.1,17.2259]
[1646587602733,24.853,87.146,87.1,17.2259]
[1646587603331,27.41003073,87.146,87.1,17.2259]
[1646587603534,26.39403073,87.146,87.1,17.2259]
[1646587603931,24.853,87.146,87.1,17.2259]
[1646587604133,1.54103073,87.144,87.1,17.2259]
[1646587605231,1.54103073,87.142,87.1,17.2259]
[1646587605431,1.54103073,87.141,87.1,17.2259]
[1646587606135,1.54103073,87.142,87.1,17.2259]
[1646587606836,1.54103073,87.14,87.1,17.2259]
[1646587607035,1.54103073,87.139,87.1,17.2259]
[1646587608236,1.54103073,87.135,87.1,17.2259]
[1646587608637,46.94801333,87.134,87.1,17.2259]
[1646587609037,48.48904406,87.134,87.1,17.2259]
[1646587609438,48.48904406,87.134,87.091,24.8321]
[1646587609638,1.54103073,87.128,87.091,24.8321]
[1646587609837,1.54103073,87.126,87.091,24.8321]
[1646587610237,1.54103073,87.124,87.091,24.8321]
[1646587610637,1.54103073,87.123,87.091,24.8321]
[1646587611458,1.54103073,87.124,87.091,24.8321]
[1646587611658,1.54103073,87.125,87.091,24.8321]
[1646587612158,1.54103073,87.124,87.09,17.2288]
[1646587612957,23.571,87.133,87.09,17.2288]
[1646587612958,1.54103073,87.123,87.09,17.2288]
[1646587613257,1.54103073,87.124,87.09,17.2288]
[1646587615259,1.54103073,87.125,87.09,17.2288]
[1646587617162,1.54103073,87.126,87.09,17.2288]
[1646587620466,1.54103073,87.126,87.08,17.2317]
[1646587620666,1.54103073,87.122,87.071,23.3044]
[1646587620866,1.54103073,87.119,87.071,23.3044]
[1646587621666,63.01350941,87.118,87.071,23.3044]
[1646587621866,23.8634,87.117,87.071,23.3044]
[1646587622167,23.8634,87.117,87.08,17.2318]
[1646587623967,23.8634,87.117,87.081,5.74]
[1646587624769,23.8634,87.117,87.09,17.2299]
[1646587625169,138.5634,87.117,87.09,17.2299]
[1646587625371,23.8634,87.117,87.072,5.74]
[1646587626571,138.5634,87.117,87.08,17.2318]
[1646587626773,138.5634,87.117,87.071,23.3044]
[1646587627071,1.54103073,87.111,87.071,23.3044]
[1646587627477,1.54103073,87.11,87.071,23.3044]
[1646587627673,1.54103073,87.112,87.071,23.3044]
[1646587627877,114.7,87.109,87.071,23.3044]
[1646587631579,1.072,87.108,87.071,23.3044]
[1646587631777,1.072,87.108,87.061,5.74]
[1646587631778,114.7,87.099,87.061,5.74]
[1646587631979,114.7,87.099,87.038,2.60744306]
[1646587632179,114.7,87.097,87.038,2.60744306]
[1646587632380,114.7,87.097,87.031,24.3831]
[1646587632578,46.79696334,87.096,87.031,72.85026304]
[1646587632780,1.54103073,87.094,87.032,5.742]
[1646587633180,114.7,87.095,87.04,17.2387]
[1646587633181,114.7,87.089,87.04,17.2387]
[1646587633380,123.54,87.089,87.041,5.742]
[1646587633785,114.7,87.087,87.041,5.742]
[1646587636683,114.7,87.087,87.04,17.2387]
[1646587637684,115.72,87.087,87.04,17.2387]
[1646587638283,1.02,87.087,87.031,24.3831]
[1646587638684,23.4109,87.088,87.032,29.59923971]
[1646587639285,138.1109,87.088,87.032,82.43963448]
[1646587639484,23.4109,87.088,87.033,23.85623971]
[1646587639685,23.4109,87.088,87.04,17.24]
[1646587639886,0.9197,87.087,87.04,17.24]
[1646587640486,115.6197,87.087,87.04,17.24]
[1646587641086,0.9197,87.087,87.04,17.24]
[1646587643988,138.1109,87.088,87.041,5.742]
[1646587647097,1.02,87.087,87.04,17.24]
[1646587648294,115.72,87.087,87.04,17.24]
[1646587651393,114.7,87.079,87.04,17.24]
[1646587652396,114.7,87.077,87.04,17.24]
[1646587657907,17.2428,87.07,87.034,5.742]
[1646587658107,114.7,87.069,87.014,2.60744306]
[1646587658310,24.0964,87.076,86.97,92.95089894]
[1646587658311,114.7,87.061,86.992,22.544]
[1646587658513,114.7,87.053,86.992,22.544]
[1646587658810,114.7,87.051,86.992,22.544]
[1646587659008,92.5364,87.052,86.992,22.544]
[1646587659009,114.7,87.039,86.992,22.544]
[1646587659626,114.7,87.039,86.971,23.8098]
[1646587659827,114.7,87.037,86.972,24.0675]
[1646587660027,114.7,87.021,86.971,23.85623971]
[1646587660228,114.7,87.021,86.958,23.85623971]
[1646587660428,114.7,87.019,86.958,23.85623971]
[1646587660630,68.44,87.018,86.958,23.85623971]
[1646587660828,68.44,87.012,86.949,24.0675]
[1646587661031,114.7,87.009,86.949,24.0675]
[1646587661228,114.7,87.003,86.944,23.85623971]
[1646587661432,22.6065,87.008,86.928,23.35623971]
[1646587661433,68.44,86.994,86.928,23.35623971]
[1646587661630,114.7,86.991,86.928,23.35623971]
[1646587661829,68.44,86.988,86.928,23.35623971]
[1646587662036,114.7,86.983,86.928,23.35623971]
[1646587662230,22.6065,86.993,86.928,23.35623971]
[1646587662231,114.7,86.979,86.928,23.35623971]
[1646587662432,46.43986029,86.982,86.928,23.35623971]
[1646587662631,46.43986029,86.982,86.928,25.96368277]
[1646587663030,5.75,87.025,86.929,23.72623971]
[1646587663231,5.75,87.025,86.93,31.0411]
[1646587663533,114.7,87.023,86.931,23.72623971]
[1646587663732,114.7,87.021,86.931,39.45590004]
[1646587664035,114.7,87.017,86.932,77.98706465]
[1646587664233,114.7,87.015,86.932,101.71330436]
[1646587664432,5.748,87.014,86.95,17.2523]
[1646587664634,5.748,87.014,86.951,64.90553203]
[1646587664835,5.748,87.014,86.951,91.2392148]
[1646587665033,5.748,87.014,86.952,2.60744306]
[1646587665233,5.248,87.014,86.952,26.33368277]
[1646587665433,5.748,87.016,86.952,26.33368277]
[1646587665635,5.748,87.016,86.96,17.2528]
[1646587665834,114.7,87.015,86.96,17.2528]
[1646587666835,114.7,87.016,86.96,17.2528]
[1646587667134,114.7,87.014,86.96,17.2528]
[1646587667934,114.7,87.016,86.96,17.2528]
[1646587669637,114.7,87.017,86.96,17.2528]
[1646587671840,52.14802781,87.018,86.96,17.2528]
[1646587672943,5.747,87.017,86.96,17.2528]
[1646587673245,52.14802781,87.018,86.96,17.2528]
[1646587673246,166.84802781,87.018,86.96,17.2528]
[1646587673444,52.14802781,87.018,86.96,17.2528]
[1646587676044,166.84802781,87.018,86.96,17.2528]
[1646587676745,52.14802781,87.018,86.96,17.2528]
[1646587678947,166.84802781,87.018,86.961,5.747]
[1646587679150,166.84802781,87.018,86.97,17.2522]
[1646587679347,52.14802781,87.018,86.971,5.747]
[1646587679847,52.14802781,87.018,86.968,63.07229092]
[1646587679848,52.14802781,87.018,86.969,5.747]
[1646587680646,52.14802781,87.018,86.96,57.5031]
[1646587680647,52.14802781,87.018,86.961,5.747]
[1646587680853,166.84802781,87.018,86.98,17.251]
[1646587681047,166.84802781,87.018,86.961,5.747]
[1646587681247,166.84802781,87.018,86.962,24.9067]
[1646587681450,5.747,87.017,86.963,5.747]
[1646587681651,114.7,87.016,86.963,5.747]
[1646587681848,114.7,87.014,86.963,5.747]
[1646587682652,114.7,87.012,86.963,5.747]
[1646587683050,24.9623,87.013,86.97,17.2533]
[1646587684254,114.7,87.012,86.97,17.2533]
[1646587684452,120.447,87.012,86.97,17.2533]
[1646587684853,5.747,87.012,86.97,17.2533]
[1646587685253,24.9623,87.013,86.97,17.2533]
[1646587686254,114.7,87.012,86.97,17.2533]
[1646587686756,114.7,87.012,86.963,5.747]
[1646587686953,114.7,87.01,86.962,24.9067]
[1646587687154,114.7,87.008,86.962,24.9067]
[1646587687954,183.14,87.002,86.951,5.748]
[1646587688155,114.7,87.0,86.943,29.0607]
[1646587688358,114.7,86.998,86.943,29.0607]
[1646587688558,114.7,86.989,86.943,29.0607]
[1646587689860,114.7,86.989,86.943,5.748]
[1646587691162,114.7,86.987,86.943,5.748]
[1646587691967,114.7,86.979,86.943,5.748]
[1646587692767,114.7,86.977,86.943,5.748]
[1646587692964,114.7,86.969,86.943,5.748]
[1646587693165,114.7,86.969,86.923,23.3127]
[1646587693382,114.7,86.969,86.91,17.2651]
[1646587694281,120.451,86.969,86.91,17.2651]
[1646587697487,68.44,86.968,86.91,17.2651]
[1646587697690,114.7,86.959,86.9,17.267]
[1646587697888,114.7,86.957,86.9,17.267]
[1646587698688,139.3531,86.957,86.9,17.267]
[1646587699688,47.34905706,86.958,86.9,17.267]
[1646587699892,47.34905706,86.958,86.9,19.87444306]
[1646587701091,47.34905706,86.958,86.9,33.65444306]
[1646587701690,5.751,86.977,86.9,33.65444306]
[1646587701891,5.751,86.995,86.9,148.35444306]
[1646587702090,5.75,87.0,86.9,33.65444306]
[1646587702292,5.75,87.006,86.901,14.40526538]
[1646587702494,5.75,87.006,86.93,17.2545]
[1646587702691,56.47532709,87.006,86.931,47.16699223]
[1646587702893,5.749,87.005,86.931,49.77443529]
[1646587703296,5.749,87.005,86.932,26.85644306]
[1646587703497,5.749,87.005,86.95,17.2539]
[1646587704497,56.47532709,87.006,86.95,17.2539]
[1646587708501,5.748,87.005,86.95,17.2539]
[1646587708800,56.47532709,87.006,86.95,17.2539]
[1646587711904,5.748,87.005,86.95,17.2539]
[1646587715909,114.7,87.004,86.94,17.259]
[1646587716109,114.7,87.004,86.932,26.85644306]
[1646587716110,114.7,87.0,86.932,26.85644306]
[1646587716309,114.7,86.998,86.932,24.249]
[1646587716610,1.54103073,86.993,86.932,24.249]
[1646587716808,114.7,86.991,86.932,24.249]
[1646587717009,114.7,86.979,86.932,24.249]
[1646587717609,178.9654614,86.978,86.932,24.249]
[1646587719213,178.9654614,86.978,86.94,17.2598]
[1646587722219,64.2654614,86.978,86.94,17.2598]
[1646587733044,62.7654614,86.978,86.94,17.2598]
[1646587736048,1.54103073,86.992,86.95,17.2506]
[1646587736249,1.54103073,87.001,86.95,31.0306]
[1646587736446,1.54103073,87.004,86.95,31.0306]
[1646587736647,1.54103073,87.005,86.951,2.60744306]
[1646587737050,54.64537018,87.003,86.953,50.340692]
[1646587737546,56.18640091,87.003,86.953,50.340692]
[1646587737747,54.64537018,87.003,86.953,50.340692]
[1646587738147,54.64537018,87.003,86.96,17.2509]
[1646587739849,54.64537018,87.003,86.96,31.0309]
[1646587740050,1.54103073,87.014,86.96,31.0309]
[1646587740251,1.54103073,87.014,86.961,2.60744306]
[1646587740452,1.54103073,87.02,86.97,17.249]
[1646587740652,1.54103073,87.021,86.97,17.249]
[1646587740851,7.28803073,87.022,86.97,31.029]
[1646587741052,57.90571712,87.021,86.971,58.64684481]
[1646587741551,57.90571712,87.021,86.98,17.2479]
[1646587750167,1.54103073,87.043,86.981,2.60744306]
[1646587750361,1.54103073,87.043,86.99,17.2433]
[1646587750562,1.54103073,87.045,86.99,17.2433]
[1646587750862,1.54103073,87.045,86.991,5.745]
[1646587751062,1.54103073,87.045,86.992,24.1421]
[1646587751263,57.70892335,87.044,86.993,60.20856194]
[1646587752266,57.70892335,87.044,87.0,17.2432]
[1646587752462,57.70892335,87.044,87.001,5.745]
[1646587752962,57.70892335,87.044,86.994,5.745]
[1646587754163,57.70892335,87.044,87.01,17.2419]
[1646587754366,57.70892335,87.044,87.012,48.02660916]
[1646587754564,57.70892335,87.044,87.013,5.745]
[1646587755164,57.70892335,87.044,87.001,5.745]
[1646587756064,57.70892335,87.044,87.002,54.80140452]
[1646587756265,57.70892335,87.044,87.02,17.2415]
[1646587759572,57.70892335,87.044,87.03,17.2416]
[1646587760788,57.70892335,87.044,87.02,17.2434]
[1646587766975,1.54103073,87.052,87.02,31.0234]
[1646587767177,1.54103073,87.061,87.02,33.63084306]
[1646587767379,4.12099507,87.144,87.02,33.63084306]
[1646587767380,1.54103073,87.067,87.03,17.2329]
[1646587767574,1.54103073,87.072,87.03,140.42037735]
[1646587767775,1.54103073,87.089,87.031,2.60744306]
[1646587767974,1.54103073,87.089,87.033,114.7]
[1646587768175,1.54103073,87.097,87.033,114.7]
[1646587768374,1.54103073,87.097,87.04,131.9281]
[1646587768575,1.54103073,87.097,87.034,27.89598337]
[1646587768576,1.54103073,87.098,87.05,128.48]
[1646587768790,1.54103073,87.102,87.06,13.78]
[1646587768981,1.54103073,87.102,87.061,54.49924996]
[1646587769384,1.54103073,87.121,87.062,117.30744306]
[1646587769584,1.54103073,87.121,87.062,29.3693167]
[1646587769886,1.54103073,87.122,87.063,2.60744306]
[1646587770083,1.54103073,87.12,87.063,2.60744306]
[1646587770282,9.36158614,87.144,87.063,2.60744306]
[1646587770283,48.61460917,87.119,87.07,17.227]
[1646587770483,48.61460917,87.119,87.08,13.78]
[1646587772187,48.61460917,87.119,87.09,17.2267]
[1646587773590,1.54103073,87.129,87.09,17.2267]
[1646587773790,27.21933976,87.153,87.09,31.0067]
[1646587773791,1.54103073,87.143,87.09,31.0067]
[1646587773990,5.739,87.142,87.09,31.0067]
[1646587774191,1.54103073,87.144,87.09,31.0067]
[1646587774594,63.05964924,87.143,87.09,31.0067]
[1646587781513,63.05964924,87.143,87.091,60.54220877]
[1646587781716,63.05964924,87.143,87.1,17.2219]
[1646587781914,63.05964924,87.143,87.101,5.739]
[1646587782720,63.05964924,87.143,87.11,17.2218]
[1646587782915,63.05964924,87.143,87.111,5.738]
[1646587783316,63.05964924,87.143,87.101,5.738]
[1646587783920,63.05964924,87.143,87.1,71.186]
[1646587784926,63.05964924,87.143,87.11,17.2241]
[1646587787727,114.7,87.142,87.1,17.2275]
[1646587787933,114.7,87.142,87.08,57.4208]
[1646587787934,1.54103073,87.141,87.081,5.739]
[1646587788331,1.54103073,87.14,87.081,5.739]
[1646587789235,1.54103073,87.141,87.09,17.2287]
[1646587789435,1.54103073,87.139,87.09,17.2287]
[1646587790040,1.54103073,87.138,87.09,17.2287]
[1646587790640,1.54103073,87.135,87.09,17.2287]
[1646587790843,1.54103073,87.134,87.09,17.2287]
[1646587792543,1.54103073,87.133,87.09,17.2287]
[1646587792744,1.54103073,87.132,87.09,17.2287]
[1646587793346,51.98153251,87.124,87.09,17.2287]
[1646587794554,53.52256324,87.124,87.09,17.2287]
[1646587794757,51.98153251,87.124,87.09,17.2287]
[1646587794957,53.52256324,87.124,87.09,17.2287]
[1646587795358,1.54103073,87.121,87.091,5.74]
[1646587795660,51.98153251,87.124,87.08,17.2316]
[1646587795661,1.54103073,87.12,87.08,17.2316]
[1646587795858,1.54103073,87.117,87.081,5.74]
[1646587796460,1.54103073,87.099,87.08,17.2316]
[1646587797060,1.54103073,87.098,87.08,17.2316]
[1646587798465,1.54103073,87.1,87.08,17.2316]
[1646587799466,1.54103073,87.099,87.08,17.2316]
[1646587800773,1.54103073,87.098,87.08,17.2316]
[1646587800968,1.54103073,87.099,87.08,17.2316]
[1646587801169,1.54103073,87.098,87.08,17.2316]
[1646587802370,53.88659761,87.104,87.08,17.2316]
[1646587802371,1.54103073,87.097,87.08,17.2316]
[1646587802669,1.54103073,87.098,87.08,17.2316]
[1646587802869,53.88659761,87.104,87.08,17.2316]
[1646587802870,1.54103073,87.099,87.08,17.2316]
[1646587803070,1.54103073,87.098,87.08,17.2316]
[1646587804071,1.54103073,87.094,87.07,17.2332]
[1646587804270,1.54103073,87.095,87.071,5.74]
[1646587804670,1.54103073,87.095,87.055,5.74]
[1646587805070,1.54103073,87.095,87.06,57.4383]
[1646587805270,1.54103073,87.095,87.061,5.742]
[1646587805570,1.54103073,87.096,87.061,32.14854031]
[1646587805774,1.54103073,87.099,87.061,32.14854031]
[1646587806172,1.54103073,87.099,87.07,17.2314]
[1646587806371,1.54103073,87.099,87.071,5.74]
[1646587806773,1.54103073,87.102,87.071,5.74]
[1646587806976,5.74,87.128,87.08,13.78]
[1646587806977,1.54103073,87.106,87.08,13.78]
[1646587807174,1.54103073,87.119,87.08,31.012]
[1646587807375,1.54103073,87.12,87.081,26.40654031]
[1646587807774,1.54103073,87.121,87.082,55.8869631]
[1646587807976,1.54103073,87.124,87.082,58.49440616]
[1646587808178,1.54103073,87.127,87.083,29.01398337]
[1646587808377,1.54103073,87.128,87.09,17.2237]
[1646587808574,1.54103073,87.128,87.1,13.78]
[1646587808775,1.54103073,87.128,87.101,48.65782072]
[1646587809375,1.54103073,87.136,87.11,17.2217]
[1646587809977,1.54103073,87.135,87.11,17.2217]
[1646587810376,1.54103073,87.134,87.11,17.2217]
[1646587810576,6.278647,87.158,87.11,17.2217]
[1646587810577,1.54103073,87.133,87.11,17.2217]
[1646587810879,1.54103073,87.131,87.11,17.2217]
[1646587811076,1.54103073,87.137,87.11,17.2217]
[1646587811489,1.54103073,87.136,87.11,17.2217]
[1646587811880,59.69170201,87.135,87.11,17.2217]
[1646587812281,61.23273274,87.135,87.11,17.2217]
[1646587812481,59.69170201,87.135,87.11,17.2217]
[1646587812681,61.23273274,87.135,87.11,17.2217]
[1646587813908,59.69170201,87.135,87.1,17.2277]
[1646587814106,1.54103073,87.131,87.1,17.2277]
[1646587814307,1.54103073,87.13,87.069,2.60744306]
[1646587814507,1.54103073,87.123,87.069,2.60744306]
[1646587814709,1.54103073,87.118,87.06,13.78]
[1646587814907,1.54103073,87.115,87.061,60.22494742]
[1646587815207,1.54103073,87.114,87.08,17.2304]
[1646587816308,1.54103073,87.113,87.08,17.2304]
[1646587816907,1.54103073,87.114,87.08,17.2304]
[1646587817210,1.54103073,87.116,87.08,17.2304]
[1646587817706,1.54103073,87.113,87.08,17.2304]
[1646587818106,1.54103073,87.115,87.08,17.2304]
[1646587818506,1.54103073,87.114,87.08,17.2304]
[1646587819308,1.54103073,87.113,87.08,17.2304]
[1646587819510,46.86623208,87.117,87.08,17.2304]
[1646587819511,1.54103073,87.114,87.08,17.2304]
[1646587820111,1.54103073,87.116,87.08,17.2304]
[1646587820713,1.54103073,87.115,87.08,17.2304]
[1646587821518,1.54103073,87.114,87.08,17.2304]
[1646587822519,1.54103073,87.115,87.08,57.38227364]
[1646587822719,1.54103073,87.132,87.08,57.38227364]
[1646587822920,1.54103073,87.133,87.08,57.38227364]
[1646587823120,1.04103073,87.134,87.08,57.38227364]
[1646587823418,60.76436928,87.133,87.08,57.38227364]
[1646587824825,60.76436928,87.133,87.08,17.2304]
[1646587825025,114.7,87.132,87.073,24.22]
[1646587825226,114.7,87.13,87.071,5.74]
[1646587825430,114.7,87.128,87.045,2.60744306]
[1646587825624,114.7,87.126,87.03,13.78]
[1646587825825,68.44,87.123,87.031,23.3371]
[1646587826024,114.7,87.109,87.031,23.3371]
[1646587826223,114.7,87.107,87.031,23.3371]
[1646587826426,114.7,87.105,87.031,23.3371]
[1646587826828,114.7,87.101,87.031,23.3371]
[1646587827024,114.7,87.099,87.031,23.3371]
[1646587827226,17.2392,87.09,87.04,17.2397]
[1646587827424,29.4597,87.098,87.04,17.2397]
[1646587829731,23.7177,87.098,87.04,17.2397]
[1646587833830,114.7,87.097,87.04,17.2397]
[1646587834331,17.2394,87.09,87.04,17.2397]
[1646587835327,23.7177,87.098,87.04,17.2397]
[1646587835929,5.742,87.097,87.04,17.2397]
[1646587836332,114.7,87.096,87.04,17.2397]
[1646587836531,23.7177,87.098,87.04,17.2397]
[1646587836532,5.742,87.095,87.04,17.2397]
[1646587836732,114.7,87.094,87.04,17.2397]
[1646587836934,5.742,87.093,87.04,17.2397]
[1646587837131,5.742,87.097,87.04,17.2397]
[1646587837933,114.7,87.096,87.04,17.2397]
[1646587838132,23.7177,87.098,87.04,17.2397]
[1646587838133,131.9393,87.09,87.04,17.2397]
[1646587839136,52.23908344,87.088,87.041,5.742]
[1646587839335,5.742,87.087,87.041,5.742]
[1646587839736,5.742,87.087,87.05,17.2379]
[1646587839936,52.23908344,87.088,87.05,17.2379]
[1646587840136,23.7177,87.098,87.05,17.2379]
[1646587840339,23.7177,87.098,87.051,29.65407236]
[1646587840536,3.08063976,87.137,87.051,29.65407236]
[1646587840537,5.742,87.131,87.051,29.65407236]
[1646587840738,138.2076,87.13,87.052,48.74087236]
[1646587840937,138.2076,87.13,87.06,17.2292]
[1646587841139,54.77049418,87.129,87.062,48.20419354]
[1646587841339,54.77049418,87.129,87.063,5.74]
[1646587842148,54.77049418,87.129,87.064,22.7678]
[1646587842345,54.77049418,87.129,87.065,5.74]
[1646587842545,54.77049418,87.129,87.08,17.2304]
[1646587842745,114.7,87.128,87.08,17.2304]
[1646587843350,114.7,87.126,87.08,17.2304]
[1646587843549,114.7,87.124,87.08,17.2304]
[1646587843750,114.7,87.122,87.08,17.2304]
[1646587843950,114.7,87.12,87.08,17.2304]
[1646587844151,5.74,87.119,87.08,17.2304]
[1646587844351,5.74,87.128,87.08,17.2304]
[1646587845150,114.7,87.127,87.08,17.2304]
[1646587845351,5.74,87.126,87.08,17.2304]
[1646587845550,5.74,87.128,87.08,17.2304]
[1646587845750,114.7,87.127,87.08,17.2304]
[1646587845959,131.9335,87.12,87.049,5.74]
[1646587846159,114.7,87.118,87.044,22.6765]
[1646587846360,0.38167066,87.115,87.044,22.6765]
[1646587846559,114.7,87.113,87.045,5.74]
[1646587846760,183.14,87.111,87.045,5.74]
[1646587846968,114.7,87.109,87.044,22.6765]
[1646587847173,114.7,87.107,87.044,22.6765]
[1646587847376,114.7,87.105,87.044,22.6765]
[1646587847572,114.7,87.103,87.044,22.6765]
[1646587847975,114.7,87.101,87.032,5.742]
[1646587848173,114.7,87.099,87.05,17.2374]
[1646587848373,114.7,87.097,87.032,29.65407236]
[1646587848572,114.7,87.095,87.032,29.65407236]
[1646587848872,114.7,87.093,87.032,5.742]
[1646587849074,114.7,87.091,87.031,5.743]
[1646587849275,120.443,87.09,87.04,17.2393]
[1646587849473,56.17854234,87.089,87.04,17.2393]
[1646587849875,114.7,87.088,87.04,17.2393]
[1646587850473,56.17854234,87.089,87.04,17.2393]
[1646587850873,56.17854234,87.089,87.041,47.15969046]
[1646587851074,56.17854234,87.089,87.042,5.742]
[1646587851272,56.17854234,87.089,87.05,17.237]
[1646587853676,56.17854234,87.089,87.06,17.2343]
[1646587854077,56.17854234,87.089,87.061,5.742]
[1646587855483,56.17854234,87.089,87.06,17.2343]
[1646587860490,56.17854234,87.089,87.05,17.2372]
[1646587860691,56.17854234,87.089,87.051,5.742]
[1646587861393,56.17854234,87.089,87.05,17.2372]
[1646587870209,56.17854234,87.089,87.051,53.17207455]
[1646587870409,56.17854234,87.089,87.06,17.2348]
[1646587871410,5.742,87.111,87.06,17.2348]
[1646587871610,5.74,87.115,87.06,31.0148]
[1646587871809,24.9471,87.149,87.061,26.12318538]
[1646587871810,3.08063976,87.126,87.061,26.12318538]
[1646587872008,3.08063976,87.126,87.08,17.2253]
[1646587872208,3.08063976,87.129,87.08,17.2253]
[1646587872408,3.08063976,87.13,87.081,50.14404684]
[1646587872914,3.08063976,87.133,87.082,26.12318538]
[1646587873110,6.28070257,87.129,87.09,17.2237]
[1646587873327,6.28070257,87.147,87.09,17.2237]
[1646587873527,51.45157857,87.146,87.09,17.2237]
[1646587875532,51.45157857,87.146,87.09,31.0037]
[1646587875830,45.71257857,87.146,87.09,31.0037]
[1646587880232,114.7,87.145,87.09,31.0037]
[1646587880434,17.2297,87.14,87.083,23.459]
[1646587880637,138.7146,87.139,87.083,23.459]
[1646587881140,114.7,87.137,87.083,23.459]
[1646587881339,114.7,87.135,87.083,23.459]
[1646587881538,114.7,87.135,87.09,17.23]
[1646587882340,114.7,87.134,87.09,17.23]
[1646587882940,114.7,87.137,87.09,17.23]
[1646587883141,114.7,87.135,87.09,17.23]
[1646587883340,114.7,87.133,87.09,17.23]
[1646587883540,114.7,87.131,87.09,17.23]
[1646587883739,49.10515812,87.132,87.09,17.23]
[1646587883940,114.7,87.131,87.09,17.23]
[1646587884140,114.7,87.129,87.08,17.2317]
[1646587885443,114.7,87.131,87.08,17.2317]
[1646587886042,5.74,87.13,87.08,17.2317]
[1646587886443,114.7,87.131,87.08,17.2317]
[1646587886842,17.2317,87.13,87.08,17.2317]
[1646587887741,114.7,87.129,87.08,17.2317]
[1646587888541,120.44,87.129,87.08,17.2317]
[1646587891444,17.2337,87.12,87.071,22.7001]
[1646587891849,114.7,87.117,87.071,22.7001]
[1646587892147,114.7,87.115,87.071,22.7001]
[1646587892350,68.44,87.112,87.043,26.12318538]
[1646587892551,114.7,87.109,87.05,17.2373]
[1646587892748,0.42754906,87.108,87.05,17.2373]
[1646587892949,114.7,87.106,87.05,17.2373]
[1646587893150,114.7,87.104,87.05,17.2373]
[1646587893350,114.7,87.102,87.05,17.2373]
[1646587893552,120.442,87.101,87.05,43.36048538]
[1646587894150,17.2378,87.1,87.05,43.36048538]
[1646587896454,5.742,87.099,87.05,43.36048538]
[1646587898357,5.742,87.102,87.05,43.36048538]
[1646587899579,49.10515812,87.103,87.05,43.36048538]
[1646587902685,114.7,87.102,87.05,43.36048538]
[1646587902890,5.742,87.101,87.05,43.36048538]
[1646587903085,49.10515812,87.103,87.05,43.36048538]
[1646587904687,5.742,87.126,87.051,2.60744306]
[1646587904889,5.74,87.133,87.07,17.2261]
[1646587905086,24.5731,87.139,87.071,24.811]
[1646587905587,52.44234652,87.138,87.072,77.60111937]
[1646587905889,52.44234652,87.138,87.09,17.2274]
[1646587907086,114.7,87.137,87.09,17.2274]
[1646587907287,52.44234652,87.138,87.09,17.2274]
[1646587908088,5.739,87.137,87.09,17.2274]
[1646587911391,5.739,87.137,87.081,24.811]
[1646587911590,5.739,87.137,87.06,39.90127872]
[1646587911788,3.08063976,87.134,87.061,23.599]
[1646587911991,3.08063976,87.131,87.061,23.599]
[1646587912190,3.08063976,87.13,87.061,23.599]
[1646587912488,135.01193976,87.13,87.061,23.599]
[1646587912691,114.7,87.128,87.061,23.599]
[1646587912892,114.7,87.126,87.061,23.599]
[1646587913089,114.7,87.124,87.061,23.599]
[1646587913291,114.7,87.122,87.061,23.599]
[1646587913491,17.2347,87.12,87.061,23.599]